Workbook

Sheet Семеен бюджет
B1: БЮДЖЕТ НА СЕМЕЙСТВО ХРИСТОВИ
B2: ГОДИНА: | C2: 2013
B4: НАЛИЧНИ ПАРИ | C4: ЯНР | D4: ФЕВ | E4: МАР | F4: АПР | G4: МАЙ | H4: ЮНИ | I4: ЮЛИ | J4: АВГ | K4: СЕП | L4: ОКТ | M4: НОЕ | N4: ДЕК | O4: ОБЩО ЗА ГОДИНАТА | P4: ТЕНДЕНЦИЯ
B5: Месечни средства | C5: =тблПриходи[[#Totals],[ЯНР]]-тблРазходи[[#Totals],[ЯНР]] -> 1,220.00 лв. | D5: =тблПриходи[[#Totals],[ФЕВ]]-тблРазходи[[#Totals],[ФЕВ]] -> 1,587.00 лв. | E5: =тблПриходи[[#Totals],[МАР]]-тблРазходи[[#Totals],[МАР]] -> 1,174.00 лв. | F5: =тблПриходи[[#Totals],[АПР]]-тблРазходи[[#Totals],[АПР]] -> 1,445.00 лв. | G5: =тблПриходи[[#Totals],[МАЙ]]-тблРазходи[[#Totals],[МАЙ]] -> 1,391.00 лв. | H5: =тблПриходи[[#Totals],[ЮНИ]]-тблРазходи[[#Totals],[ЮНИ]] -> 1,434.00 лв. | I5: =тблПриходи[[#Totals],[ЮЛИ]]-тблРазходи[[#Totals],[ЮЛИ]] -> 1,085.00 лв. | J5: =тблПриходи[[#Totals],[АВГ]]-тблРазходи[[#Totals],[АВГ]] -> 1,181.00 лв. | K5: =тблПриходи[[#Totals],[СЕП]]-тблРазходи[[#Totals],[СЕП]] -> 1,445.00 лв. | L5: =тблПриходи[[#Totals],[ОКТ]]-тблРазходи[[#Totals],[ОКТ]] -> 1,466.00 лв. | M5: =тблПриходи[[#Totals],[НОЕ]]-тблРазходи[[#Totals],[НОЕ]] -> 0.00 лв. | N5: =тблПриходи[[#Totals],[ДЕК]]-тблРазходи[[#Totals],[ДЕК]] -> 0.00 лв. | O5: =тблПриходи[[#Totals],[ОБЩО ЗА ГОДИНАТА]]-тблРазходи[[#Totals],[ОБЩО ЗА ГОДИНАТА]] -> 13,428.00 лв.
B7: ТИП ДОХОД | C7: ЯНР | D7: ФЕВ | E7: МАР | F7: АПР | G7: МАЙ | H7: ЮНИ | I7: ЮЛИ | J7: АВГ | K7: СЕП | L7: ОКТ | M7: НОЕ | N7: ДЕК | O7: ОБЩО ЗА ГОДИНАТА | P7: ТЕНДЕНЦИЯ
B8: Доход 1 | C8: 4,000.00 лв. | D8: 4,410.00 лв. | E8: 4,019.00 лв. | F8: 4,263.00 лв. | G8: 4,123.00 лв. | H8: 4,308.00 лв. | I8: 4,162.00 лв. | J8: 4,165.00 лв. | K8: 4,248.00 лв. | L8: 4,324.00 лв. | O8: =SUM(тблПриходи[[#This Row],[ЯНР]:[ДЕК]]) -> 42,022.00 лв.
B9: Доход 2 | C9: 275.00 лв. | D9: 296.00 лв. | E9: 251.00 лв. | F9: 269.00 лв. | G9: 252.00 лв. | H9: 252.00 лв. | I9: 262.00 лв. | J9: 258.00 лв. | K9: 296.00 лв. | L9: 270.00 лв. | O9: =SUM(тблПриходи[[#This Row],[ЯНР]:[ДЕК]]) -> 2,681.00 лв.
B10: Други приходи | C10: 500.00 лв. | D10: 507.00 лв. | E10: 551.00 лв. | F10: 556.00 лв. | G10: 588.00 лв. | H10: 534.00 лв. | I10: 533.00 лв. | J10: 585.00 лв. | K10: 560.00 лв. | L10: 520.00 лв. | O10: =SUM(тблПриходи[[#This Row],[ЯНР]:[ДЕК]]) -> 5,434.00 лв.
B11: ОБЩО ПРИХОДИ | C11: =SUBTOTAL(109,тблПриходи[ЯНР]) -> 4,775.00 лв. | D11: =SUBTOTAL(109,тблПриходи[ФЕВ]) -> 5,213.00 лв. | E11: =SUBTOTAL(109,тблПриходи[МАР]) -> 4,821.00 лв. | F11: =SUBTOTAL(109,тблПриходи[АПР]) -> 5,088.00 лв. | G11: =SUBTOTAL(109,тблПриходи[МАЙ]) -> 4,963.00 лв. | H11: =SUBTOTAL(109,тблПриходи[ЮНИ]) -> 5,094.00 лв. | I11: =SUBTOTAL(109,тблПриходи[ЮЛИ]) -> 4,957.00 лв. | J11: =SUBTOTAL(109,тблПриходи[АВГ]) -> 5,008.00 лв. | K11: =SUBTOTAL(109,тблПриходи[СЕП]) -> 5,104.00 лв. | L11: =SUBTOTAL(109,тблПриходи[ОКТ]) -> 5,114.00 лв. | M11: =SUBTOTAL(109,тблПриходи[НОЕ]) -> 0.00 лв. | N11: =SUBTOTAL(109,тблПриходи[ДЕК]) -> 0.00 лв. | O11: =SUBTOTAL(109,тблПриходи[ОБЩО ЗА ГОДИНАТА]) -> 50,137.00 лв.
B13: РАЗХОДИ | C13: ЯНР | D13: ФЕВ | E13: МАР | F13: АПР | G13: МАЙ | H13: ЮНИ | I13: ЮЛИ | J13: АВГ | K13: СЕП | L13: ОКТ | M13: НОЕ | N13: ДЕК | O13: ОБЩО ЗА ГОДИНАТА | P13: ТЕНДЕНЦИЯ
B14: Домакинство | C14: 1,500.00 лв. | D14: 1,500.00 лв. | E14: 1,500.00 лв. | F14: 1,500.00 лв. | G14: 1,500.00 лв. | H14: 1,500.00 лв. | I14: 1,500.00 лв. | J14: 1,500.00 лв. | K14: 1,500.00 лв. | L14: 1,500.00 лв. | O14: =SUM(тблРазходи[[#This Row],[ЯНР]:[ДЕК]]) -> 15,000.00 лв.
B15: Продукти | C15: 250.00 лв. | D15: 331.00 лв. | E15: 299.00 лв. | F15: 333.00 лв. | G15: 324.00 лв. | H15: 313.00 лв. | I15: 338.00 лв. | J15: 225.00 лв. | K15: 258.00 лв. | L15: 322.00 лв. | O15: =SUM(тблРазходи[[#This Row],[ЯНР]:[ДЕК]]) -> 2,993.00 лв.
B16: Изплащане на кола | C16: 345.00 лв. | D16: 345.00 лв. | E16: 345.00 лв. | F16: 345.00 лв. | G16: 345.00 лв. | H16: 345.00 лв. | I16: 345.00 лв. | J16: 345.00 лв. | K16: 345.00 лв. | L16: 345.00 лв. | O16: =SUM(тблРазходи[[#This Row],[ЯНР]:[ДЕК]]) -> 3,450.00 лв.
B17: Застраховка | C17: 120.00 лв. | D17: 120.00 лв. | E17: 120.00 лв. | F17: 120.00 лв. | G17: 120.00 лв. | H17: 120.00 лв. | I17: 120.00 лв. | J17: 120.00 лв. | K17: 120.00 лв. | L17: 120.00 лв. | O17: =SUM(тблРазходи[[#This Row],[ЯНР]:[ДЕК]]) -> 1,200.00 лв.
B18: Домашен телефон | C18: 50.00 лв. | D18: 50.00 лв. | E18: 50.00 лв. | F18: 50.00 лв. | G18: 50.00 лв. | H18: 50.00 лв. | I18: 50.00 лв. | J18: 50.00 лв. | K18: 50.00 лв. | L18: 50.00 лв. | O18: =SUM(тблРазходи[[#This Row],[ЯНР]:[ДЕК]]) -> 500.00 лв.
B19: Мобилен телефон | C19: 72.00 лв. | D19: 70.00 лв. | E19: 80.00 лв. | F19: 70.00 лв. | G19: 75.00 лв. | H19: 80.00 лв. | I19: 90.00 лв. | J19: 73.00 лв. | K19: 75.00 лв. | L19: 70.00 лв. | O19: =SUM(тблРазходи[[#This Row],[ЯНР]:[ДЕК]]) -> 755.00 лв.
B20: Кабелна ТВ | C20: 60.00 лв. | D20: 63.00 лв. | E20: 65.00 лв. | F20: 60.00 лв. | G20: 65.00 лв. | H20: 60.00 лв. | I20: 63.00 лв. | J20: 60.00 лв. | K20: 63.00 лв. | L20: 60.00 лв. | O20: =SUM(тблРазходи[[#This Row],[ЯНР]:[ДЕК]]) -> 619.00 лв.
B21: Интернет | C21: 45.00 лв. | D21: 45.00 лв. | E21: 45.00 лв. | F21: 45.00 лв. | G21: 45.00 лв. | H21: 45.00 лв. | I21: 45.00 лв. | J21: 45.00 лв. | K21: 45.00 лв. | L21: 45.00 лв. | O21: =SUM(тблРазходи[[#This Row],[ЯНР]:[ДЕК]]) -> 450.00 лв.
B22: Електричество | C22: 155.00 лв. | D22: 155.00 лв. | E22: 158.00 лв. | F22: 160.00 лв. | G22: 165.00 лв. | H22: 200.00 лв. | I22: 340.00 лв. | J22: 350.00 лв. | K22: 240.00 лв. | L22: 180.00 лв. | O22: =SUM(тблРазходи[[#This Row],[ЯНР]:[ДЕК]]) -> 2,103.00 лв.
B23: Вода | C23: 35.00 лв. | D23: 35.00 лв. | E23: 37.00 лв. | F23: 39.00 лв. | G23: 45.00 лв. | H23: 42.00 лв. | I23: 42.00 лв. | J23: 36.00 лв. | K23: 38.00 лв. | L23: 40.00 лв. | O23: =SUM(тблРазходи[[#This Row],[ЯНР]:[ДЕК]]) -> 389.00 лв.
B24: Газ | C24: 50.00 лв. | D24: 45.00 лв. | E24: 40.00 лв. | F24: 40.00 лв. | G24: 42.00 лв. | H24: 50.00 лв. | I24: 55.00 лв. | J24: 40.00 лв. | K24: 43.00 лв. | L24: 30.00 лв. | O24: =SUM(тблРазходи[[#This Row],[ЯНР]:[ДЕК]]) -> 435.00 лв.
B25: Развлечения | C25: 123.00 лв. | D25: 92.00 лв. | E25: 58.00 лв. | F25: 131.00 лв. | G25: 46.00 лв. | H25: 105.00 лв. | I25: 84.00 лв. | J25: 108.00 лв. | K25: 132.00 лв. | L25: 136.00 лв. | O25: =SUM(тблРазходи[[#This Row],[ЯНР]:[ДЕК]]) -> 1,015.00 лв.
B26: Обучение | C26: 550.00 лв. | D26: 550.00 лв. | E26: 550.00 лв. | F26: 550.00 лв. | G26: 550.00 лв. | H26: 550.00 лв. | I26: 550.00 лв. | J26: 550.00 лв. | K26: 550.00 лв. | L26: 550.00 лв. | O26: =SUM(тблРазходи[[#This Row],[ЯНР]:[ДЕК]]) -> 5,500.00 лв.
B27: Спестявания | C27: 200.00 лв. | D27: 225.00 лв. | E27: 300.00 лв. | F27: 200.00 лв. | G27: 200.00 лв. | H27: 200.00 лв. | I27: 250.00 лв. | J27: 325.00 лв. | K27: 200.00 лв. | L27: 200.00 лв. | O27: =SUM(тблРазходи[[#This Row],[ЯНР]:[ДЕК]]) -> 2,300.00 лв.
B28: ОБЩО РАЗХОДИ | C28: =SUBTOTAL(109,тблРазходи[ЯНР]) -> 3,555.00 лв. | D28: =SUBTOTAL(109,тблРазходи[ФЕВ]) -> 3,626.00 лв. | E28: =SUBTOTAL(109,тблРазходи[МАР]) -> 3,647.00 лв. | F28: =SUBTOTAL(109,тблРазходи[АПР]) -> 3,643.00 лв. | G28: =SUBTOTAL(109,тблРазходи[МАЙ]) -> 3,572.00 лв. | H28: =SUBTOTAL(109,тблРазходи[ЮНИ]) -> 3,660.00 лв. | I28: =SUBTOTAL(109,тблРазходи[ЮЛИ]) -> 3,872.00 лв. | J28: =SUBTOTAL(109,тблРазходи[АВГ]) -> 3,827.00 лв. | K28: =SUBTOTAL(109,тблРазходи[СЕП]) -> 3,659.00 лв. | L28: =SUBTOTAL(109,тблРазходи[ОКТ]) -> 3,648.00 лв. | M28: =SUBTOTAL(109,тблРазходи[НОЕ]) -> 0.00 лв. | N28: =SUBTOTAL(109,тблРазходи[ДЕК]) -> 0.00 лв. | O28: =SUBTOTAL(109,тблРазходи[ОБЩО ЗА ГОДИНАТА]) -> 36,709.00 лв.
